bitfinex-derivatives/quotes_BNBF0:USTF0_20250524
["timestamp","ask_amount","ask_price","bid_price","bid_amount"]
[1748052660106,1.59220166,663.38,662.78,1.12090803]
[1748052660311,1.59220166,663.37,662.78,1.12090803]
[1748052660610,1.09896654,663.36,662.78,1.12090803]
[1748052660811,1.09896654,663.35,662.78,1.12090803]
[1748052661111,1.09896654,663.34,662.78,1.12090803]
[1748052661311,1.09896654,663.33,662.78,1.12090803]
[1748052661509,1.09896654,663.32,662.78,1.12090803]
[1748052661706,1.50379737,663.46,662.78,1.12090803]
[1748052661909,1.59217288,663.45,662.78,1.12090803]
[1748052662109,1.59217288,663.44,662.78,1.12090803]
[1748052662307,1.59217288,663.43,662.78,1.12090803]
[1748052662609,1.59217288,663.42,662.78,1.12090803]
[1748052662810,1.59240524,663.41,662.78,1.12090803]
[1748052663010,1.59240524,663.4,662.78,1.12090803]
[1748052663305,1.59240524,663.39,662.78,1.12090803]
[1748052663510,1.59240524,663.38,662.81,1.12090803]
[1748052663710,1.59240524,663.37,662.81,1.12090803]
[1748052663910,1.59240524,663.36,662.81,1.12090803]
[1748052664116,1.59240524,663.35,662.81,1.12090803]
[1748052664316,1.59240524,663.34,662.81,1.12090803]
[1748052664608,1.59292061,663.33,662.81,1.12090803]
[1748052664815,1.59292061,663.32,662.81,1.12090803]
[1748052665014,1.59292061,663.31,662.81,1.12090803]
[1748052665213,1.59292061,663.3,662.81,1.12090803]
[1748052665513,1.59292061,663.29,662.81,1.12090803]
[1748052665712,1.59292061,663.28,662.81,1.12090803]
[1748052665907,1.59292061,663.27,662.81,1.12090803]
[1748052666112,1.59292061,663.26,662.81,1.12090803]
[1748052666308,1.59379213,663.25,662.81,1.12090803]
[1748052666513,1.59379213,663.24,662.81,1.12090803]
[1748052666813,1.59379213,663.23,662.81,1.12090803]
[1748052667110,1.59379213,663.22,662.81,1.12090803]
[1748052667315,1.59379213,663.21,662.73,1.14]
[1748052667513,1.59379213,663.2,662.73,1.14]
[1748052667709,1.59379213,663.19,662.73,1.14]
[1748052667913,1.59379213,663.18,662.73,1.14]
[1748052668211,1.59368186,663.17,662.73,1.14]
[1748052668412,1.09966933,663.16,662.73,1.14]
[1748052668610,1.09966933,663.15,662.73,1.14]
[1748052668908,1.09966933,663.14,662.73,1.14]
[1748052669110,1.09966933,663.13,662.73,1.14]
[1748052669309,1.09966933,663.12,662.73,1.14]
[1748052669513,1.50379737,663.51,662.73,1.14]
[1748052669712,1.89501648,663.5,662.73,1.14]
[1748052669915,1.89502102,663.49,662.73,1.14]
[1748052670116,1.59358468,663.48,662.73,1.14]
[1748052670317,1.59358468,663.47,662.73,1.14]
[1748052670517,1.59358468,663.46,662.73,1.14]
[1748052670816,1.59358468,663.45,662.73,1.14]
[1748052671017,1.59358468,663.44,662.73,1.14]
[1748052671214,1.59358468,663.43,662.73,1.14]
[1748052671416,1.59358468,663.42,662.73,1.14]
[1748052671620,1.59342622,663.41,662.73,1.14]
[1748052671821,1.59335894,663.4,662.73,1.14]
[1748052672020,1.59335894,663.39,662.73,1.14]
[1748052672220,1.59335894,663.38,662.73,1.14]
[1748052672520,1.59335894,663.37,662.73,1.14]
[1748052672821,1.59335894,663.36,662.73,1.14]
[1748052673016,1.59335894,663.35,662.73,1.14]
[1748052673221,1.59335894,663.34,662.73,1.14]
[1748052673418,1.59335894,663.33,662.73,1.14]
[1748052673615,1.59335894,663.32,662.73,1.14]
[1748052673816,1.59335894,663.31,662.73,1.14]
[1748052674020,1.59335894,663.3,662.73,1.14]
[1748052674221,1.59335894,663.29,662.73,1.14]
[1748052674423,1.59335894,663.28,662.73,1.14]
[1748052674622,1.59335894,663.27,662.73,1.14]
[1748052674923,1.59335894,663.26,662.73,1.14]
[1748052675116,1.59335894,663.25,662.73,1.14]
[1748052675321,1.59335894,663.24,662.73,1.14]
[1748052675618,1.59230062,663.23,662.73,1.14]
[1748052675822,1.59230062,663.22,662.73,1.14]
[1748052676022,1.59230062,663.21,662.73,1.14]
[1748052676219,1.59230062,663.2,662.73,1.14]
[1748052676426,1.59230062,663.19,662.73,1.14]
[1748052676624,1.59230062,663.18,662.73,1.14]
[1748052676820,1.59230062,663.17,662.73,1.14]
[1748052677021,1.59230062,663.16,662.73,1.14]
[1748052677222,1.59230062,663.15,662.73,1.14]
[1748052677425,1.59200515,663.14,662.73,1.14]
[1748052677724,1.09850617,663.13,662.73,1.14]
[1748052677924,1.09850617,663.12,662.73,1.14]
[1748052678123,1.09850617,663.11,662.73,1.14]
[1748052678317,1.09850617,663.1,662.73,1.14]
[1748052678521,1.50379737,663.45,662.73,1.14]
[1748052678722,1.89298002,663.44,662.73,1.14]
[1748052678919,1.59152096,663.43,662.73,1.14]
[1748052679120,0.30145906,663.44,662.73,1.14]
[1748052679121,1.59152096,663.42,662.73,1.14]
[1748052679419,1.59152096,663.41,662.73,1.14]
[1748052679619,1.59152096,663.4,662.73,1.14]
[1748052679819,1.59152096,663.39,662.73,1.14]
[1748052680021,1.59152096,663.38,662.73,1.14]
[1748052680222,1.50379737,663.3,662.73,1.14]
[1748052680426,1.59152096,663.29,662.73,1.14]
[1748052680623,1.59152096,663.28,662.73,1.14]
[1748052680826,1.59152096,663.27,662.73,1.14]
[1748052681028,1.59152096,663.26,662.73,1.14]
[1748052681227,1.59152096,663.25,662.73,1.14]
[1748052681426,1.59152096,663.24,662.73,1.14]
[1748052681626,1.59152096,663.23,662.73,1.14]
[1748052681925,1.59152096,663.22,662.73,1.14]
[1748052682222,1.59152096,663.21,662.73,1.14]
[1748052682425,1.59152096,663.2,662.73,1.14]
[1748052682628,1.59152096,663.19,662.73,1.14]
[1748052682824,1.59152096,663.18,662.73,1.14]
[1748052683025,1.59152096,663.17,662.73,1.14]
[1748052683226,1.59152096,663.16,662.73,1.14]
[1748052683428,1.09818208,663.15,662.73,1.14]
[1748052683629,1.09818208,663.14,662.73,1.14]
[1748052683823,1.09818208,663.13,662.73,1.14]
[1748052684023,1.09818208,663.12,662.73,1.14]
[1748052684226,1.50379737,663.24,662.73,1.14]
[1748052684427,1.59070015,663.23,662.73,1.14]
[1748052684624,1.59070015,663.22,662.73,1.14]
[1748052684828,1.59070015,663.21,662.73,1.14]
[1748052685031,1.59070015,663.2,662.73,1.14]
[1748052685232,1.59070015,663.19,662.73,1.14]
[1748052685531,1.59070015,663.18,662.73,1.14]
[1748052685728,1.59070015,663.17,662.73,1.14]
[1748052685933,1.59070015,663.16,662.73,1.14]
[1748052686126,1.59070015,663.15,662.73,1.14]
[1748052686329,1.59070015,663.14,662.73,1.14]
[1748052686530,1.59070015,663.13,662.73,1.14]
[1748052686730,1.59070015,663.12,662.73,1.14]
[1748052686926,1.59070015,663.11,662.73,1.14]
[1748052687231,1.59070015,663.1,662.73,1.14]
[1748052687426,1.59070015,663.09,662.73,1.14]
[1748052687632,1.59070015,663.08,662.73,1.14]
[1748052687828,1.59070015,663.07,662.73,1.14]
[1748052688132,1.59070015,663.06,662.73,1.14]
[1748052688427,1.59070015,663.05,662.73,1.14]
[1748052688628,1.59070015,663.04,662.73,1.14]
[1748052688831,1.59070015,663.03,662.73,1.14]
[1748052689029,1.59070015,663.02,662.73,1.14]
[1748052689330,1.09736684,663.01,662.73,1.14]
[1748052689528,1.09736684,663.0,662.73,1.14]
[1748052689835,1.09736684,662.99,662.73,1.14]
[1748052690035,1.09548519,662.98,662.73,1.14]
[1748052690236,1.09548519,662.97,662.73,1.14]
[1748052690436,1.09548519,662.96,662.73,1.14]
[1748052690636,1.50379737,663.32,662.73,1.14]
[1748052690837,1.88879357,663.31,662.73,1.14]
[1748052691133,1.88879811,663.3,662.73,1.14]
[1748052691337,1.88880266,663.29,662.73,1.14]
[1748052691538,1.88880721,663.28,662.73,1.14]
[1748052691737,1.88776877,663.27,662.73,1.14]
[1748052691931,1.88777332,663.26,662.73,1.14]
[1748052692133,1.88777787,663.25,662.73,1.14]
[1748052692336,1.88778241,663.24,662.73,1.14]
[1748052692537,1.88778696,663.23,662.73,1.14]
[1748052692737,1.88779151,663.22,662.73,1.14]
[1748052693038,1.88779605,663.21,662.73,1.14]
[1748052693236,1.58623245,663.2,662.73,1.14]
[1748052693439,1.88780515,663.19,662.73,1.14]
[1748052693639,1.8870564,663.18,662.73,1.14]
[1748052693834,1.88706095,663.17,662.73,1.14]
[1748052694035,1.8870655,663.16,662.73,1.14]
[1748052694240,1.88707005,663.15,662.73,1.14]
[1748052694437,1.50379737,663.27,662.73,1.14]
[1748052694438,1.88707459,663.14,662.73,1.14]
[1748052694634,1.88707914,663.13,662.73,1.14]
[1748052694838,1.88708369,663.12,662.73,1.14]
[1748052695137,1.58547916,663.11,662.73,1.14]
[1748052695336,1.58499802,663.1,662.73,1.14]
[1748052695634,1.58499802,663.09,662.73,1.14]
[1748052695835,1.58499802,663.08,662.73,1.14]
[1748052696038,1.58499802,663.07,662.73,1.14]
[1748052696238,1.58499802,663.06,662.73,1.14]
[1748052696439,1.58499802,663.05,662.73,1.14]
[1748052696739,1.58499802,663.04,662.73,1.14]
[1748052696937,1.58499802,663.03,662.73,1.14]
[1748052697138,1.58499802,663.02,662.73,1.14]
[1748052697339,1.58499802,663.01,662.73,1.14]
[1748052697539,1.58499802,663.0,662.73,1.14]
[1748052697737,1.58410735,662.99,662.73,1.14]
[1748052697935,1.58410735,662.98,662.73,1.14]
[1748052698137,1.58410735,662.97,662.73,1.14]
[1748052698335,1.58410735,662.96,662.73,1.14]
[1748052698536,1.58410735,662.95,662.73,1.14]
[1748052698734,1.58410735,662.94,662.73,1.14]
[1748052698942,1.58410735,662.93,662.73,1.14]
[1748052699241,1.58410735,662.92,662.73,1.14]
[1748052699540,1.58410735,662.91,662.73,1.14]
[1748052699741,1.58410735,662.9,662.73,1.14]
[1748052700049,1.58410735,662.89,662.73,1.14]
[1748052700242,1.58322168,662.88,662.73,1.14]
[1748052700444,1.0923543,662.87,662.73,1.14]
[1748052700638,1.58282299,662.86,662.73,1.14]
[1748052700841,1.09194498,662.85,662.73,1.14]
[1748052701038,1.09194498,662.84,662.73,1.14]
[1748052701238,1.09194498,662.83,662.73,1.14]
[1748052701444,1.09194498,662.82,662.73,1.14]
[1748052701643,1.09194498,662.81,662.73,1.14]
[1748052701840,1.09194498,662.8,662.73,1.14]
[1748052702043,1.09194498,662.79,662.73,1.14]
[1748052702243,0.30160453,663.12,662.73,1.14]
[1748052702447,1.58173791,663.11,662.73,1.14]
[1748052702647,1.88335126,663.1,662.73,1.14]
[1748052702844,1.88335581,663.09,662.73,1.14]
[1748052703048,1.88336036,663.08,662.73,1.14]
[1748052703349,1.8833649,663.07,662.73,1.14]
[1748052703542,1.88336945,663.06,662.73,1.14]
[1748052703746,1.883374,663.05,662.73,1.14]
[1748052704043,1.88337855,663.04,662.73,1.14]
[1748052704242,1.58173763,663.03,662.73,1.14]
[1748052704446,1.58130313,663.02,662.73,1.14]
[1748052704646,1.58130313,663.01,662.73,1.14]
[1748052704843,1.58130313,663.0,662.73,1.14]
[1748052705146,1.58130313,662.99,662.73,1.14]
[1748052705346,1.58130313,662.98,662.73,1.14]
[1748052705644,1.58130313,662.97,662.73,1.14]
[1748052705843,1.58130313,662.96,662.73,1.14]
[1748052706048,1.58130313,662.95,662.73,1.14]
[1748052706248,1.58114709,662.94,662.73,1.14]
[1748052706449,1.58114709,662.93,662.73,1.14]
[1748052706648,1.58114709,662.92,662.73,1.14]
[1748052706848,1.58114709,662.91,662.73,1.14]
[1748052707049,1.58114709,662.9,662.73,1.14]
[1748052707248,1.58114709,662.89,662.73,1.14]
[1748052707549,1.58114709,662.88,662.73,1.14]
[1748052707750,1.58114709,662.87,662.73,1.14]
[1748052707949,1.58114709,662.86,662.73,1.14]
[1748052708144,1.58076444,662.85,662.73,1.14]
[1748052708448,1.09076849,662.84,662.73,1.14]
[1748052708744,0.30164547,663.03,662.73,1.14]
[1748052708745,1.09076849,662.83,662.73,1.14]
[1748052708946,1.09076849,662.82,661.85,1.12090803]
[1748052709146,1.09076849,662.81,661.85,1.12090803]
[1748052709347,1.09076849,662.8,661.85,1.12090803]
[1748052709548,1.09076849,662.79,661.85,1.12090803]
[1748052709750,1.09076849,662.78,661.85,1.12090803]
[1748052709953,1.09067866,662.77,661.85,1.12090803]
[1748052710151,1.09067866,662.76,661.85,1.12090803]
[1748052710352,1.09067866,662.75,661.85,1.12090803]
[1748052710553,1.09067866,662.74,661.85,1.12090803]
[1748052710850,1.09063763,662.73,661.85,1.12090803]
[1748052711051,1.58065693,662.72,661.85,1.12090803]
[1748052711254,1.09063763,662.71,661.85,1.12090803]
[1748052711451,1.09063763,662.7,661.85,1.12090803]
[1748052711652,1.09063763,662.69,661.85,1.12090803]
[1748052711949,1.09063763,662.68,661.85,1.12090803]
[1748052712146,1.09063763,662.67,661.85,1.12090803]
[1748052712352,1.09063763,662.66,661.85,1.12090803]
[1748052712549,1.09063763,662.65,661.85,1.12090803]
[1748052712752,1.09063763,662.64,661.86,1.579]
[1748052712952,1.58052991,662.63,661.86,1.579]
[1748052713151,1.58052991,662.62,661.86,1.579]
[1748052713355,1.09063763,662.61,661.86,1.579]
[1748052713555,1.09189341,662.6,661.86,1.579]
[1748052713756,1.09189341,662.59,661.86,1.579]
[1748052713949,1.09189341,662.58,661.86,1.579]
[1748052714153,1.09189341,662.57,661.86,1.579]
[1748052714350,1.50379737,663.0,661.86,1.579]
[1748052714554,1.88304617,662.99,661.86,1.579]
[1748052714754,1.88305072,662.98,661.86,1.579]
[1748052715050,1.88305527,662.97,661.86,1.579]
[1748052715253,1.88305982,662.96,661.86,1.579]
[1748052715557,1.50379737,663.0,661.86,1.579]
[1748052715558,1.88306437,662.95,661.86,1.579]
[1748052715854,1.88306892,662.94,661.86,1.579]
[1748052716154,1.88307347,662.93,661.86,1.579]
[1748052716456,1.88307802,662.92,661.86,1.579]
[1748052716664,1.5813825,662.91,661.86,1.579]
[1748052716853,1.5813825,662.9,661.86,1.579]
[1748052717055,1.58110368,662.89,661.86,1.579]
[1748052717253,1.58110368,662.88,661.86,1.579]
[1748052717451,1.58110368,662.87,661.86,1.579]
[1748052717753,1.58110368,662.86,661.86,1.579]
[1748052717953,1.58110368,662.85,661.86,1.579]
[1748052718152,1.58110368,662.84,661.86,1.579]
[1748052718352,1.58110368,662.83,661.86,1.579]
[1748052718654,1.58110368,662.82,661.86,1.579]
[1748052718854,1.09147907,662.81,661.86,1.579]
[1748052719059,1.58115688,662.8,661.86,1.579]
[1748052719258,1.58115688,662.79,661.86,1.579]
[1748052719453,1.58115688,662.78,661.86,1.579]
[1748052719658,1.09147907,662.77,661.86,1.579]
[1748052719854,1.09147907,662.76,661.86,1.579]
[1748052720057,1.09147907,662.75,661.86,1.579]
[1748052720258,1.09147907,662.74,661.86,1.579]
[1748052720552,0.30169552,662.92,661.86,1.579]
[1748052720553,1.09147907,662.73,661.86,1.579]
[1748052720754,1.09147907,662.72,661.86,1.579]
[1748052720954,1.09147907,662.71,661.86,1.579]
[1748052721155,1.09147907,662.7,661.86,1.579]
[1748052721458,0.30169552,662.92,661.86,1.579]
[1748052721659,1.58221646,662.91,661.86,1.579]
[1748052721956,1.58221603,662.9,661.86,1.579]
[1748052722156,1.58221603,662.89,661.86,1.579]
[1748052722455,1.58221603,662.88,661.86,1.579]
[1748052722660,1.58221603,662.87,661.86,1.579]
[1748052722859,1.58221603,662.86,661.86,1.579]
[1748052723059,1.58221603,662.85,661.86,1.579]
[1748052723259,1.09245078,662.84,661.86,1.579]
[1748052723460,1.09245078,662.83,661.86,1.579]
[1748052723662,1.09245078,662.82,661.86,1.579]
[1748052723863,1.09275972,662.81,661.86,1.579]
[1748052724064,0.30169552,662.92,661.86,1.579]
[1748052724261,1.58246202,662.91,661.86,1.579]
[1748052724461,1.58246202,662.9,661.88,1.12090803]
[1748052724660,1.09275858,662.89,661.88,1.12090803]
[1748052724957,1.09275858,662.88,661.88,1.12090803]
[1748052725158,1.09275858,662.87,661.88,1.12090803]
[1748052725358,1.09275858,662.86,661.88,1.12090803]
[1748052725661,1.09275858,662.85,661.88,1.12090803]
[1748052725860,1.09275858,662.84,661.88,1.12090803]
[1748052726061,1.09275858,662.83,661.88,1.12090803]
[1748052726257,1.09275858,662.82,661.88,1.12090803]
[1748052726459,0.30169552,662.92,661.88,1.12090803]
[1748052726658,1.58328046,662.91,661.88,1.12090803]
[1748052726958,1.0933247,662.9,661.88,1.12090803]
[1748052727161,1.0933247,662.89,661.95,1.12090803]
[1748052727359,1.0933247,662.88,661.95,1.12090803]
[1748052727562,1.0933247,662.87,661.95,1.12090803]
[1748052727758,1.0933247,662.86,661.95,1.12090803]
[1748052727959,1.0933247,662.85,661.95,1.12090803]
[1748052728158,1.0933247,662.84,661.95,1.12090803]
[1748052728364,1.0933247,662.83,661.95,1.12090803]
[1748052728564,1.0933247,662.82,661.95,1.12090803]
[1748052728765,0.30169552,662.92,661.95,1.12090803]
[1748052728963,1.58390563,662.91,661.95,1.12090803]
[1748052729165,1.58390563,662.9,661.95,1.12090803]
[1748052729367,1.09375645,662.89,661.95,1.12090803]
[1748052729566,1.09375645,662.88,661.95,1.12090803]
[1748052729763,1.09375645,662.87,661.95,1.12090803]
[1748052729965,0.30169552,662.92,661.95,1.12090803]
[1748052730168,1.0939375,662.91,661.95,1.12090803]
[1748052730368,1.0939375,662.9,661.95,1.12090803]
[1748052730568,1.0939375,662.89,661.95,1.12090803]
[1748052730764,1.0939375,662.88,661.95,1.12090803]
[1748052730964,1.09422171,662.87,661.95,1.12090803]
[1748052731168,1.09422171,662.86,661.98,1.12090803]
[1748052731366,1.09442402,662.85,661.98,1.12090803]
[1748052731569,1.09442402,662.84,661.98,1.12090803]
[1748052731770,1.09442402,662.83,661.98,1.12090803]
[1748052731970,0.30169552,662.92,661.98,1.12090803]
[1748052732170,1.58494547,662.91,661.98,1.12090803]
[1748052732367,1.58514236,662.9,661.98,1.12090803]
[1748052732566,1.094673,662.89,661.98,1.12090803]
[1748052732768,1.094673,662.88,661.98,1.12090803]
[1748052732969,1.094673,662.87,661.98,1.12090803]
[1748052733169,1.094673,662.86,661.98,1.12090803]
[1748052733370,1.094673,662.85,661.98,1.12090803]
[1748052733569,1.094673,662.84,661.98,1.12090803]
[1748052733771,1.094673,662.83,661.98,1.12090803]
[1748052734070,1.094673,662.82,661.98,1.12090803]
[1748052734270,1.094673,662.81,661.98,1.12090803]
[1748052734471,1.094673,662.8,661.93,1.12090803]
[1748052734671,1.0951072,662.79,661.93,1.12090803]
[1748052734867,1.0951072,662.78,661.93,1.12090803]
[1748052735167,1.0951072,662.77,661.93,1.12090803]
[1748052735370,1.0951072,662.76,661.93,1.12090803]
[1748052735671,1.0951072,662.75,661.93,1.12090803]
[1748052735873,0.30169552,662.92,661.93,1.12090803]
[1748052736070,1.58653415,662.91,661.93,1.12090803]
[1748052736371,1.58653483,662.9,661.93,1.12090803]
[1748052736671,1.58691382,662.89,661.93,1.12090803]
[1748052736871,1.58691382,662.88,661.93,1.12090803]
[1748052737070,1.58691382,662.87,661.93,1.12090803]
[1748052737266,1.58691382,662.86,661.93,1.12090803]
[1748052737467,1.58691382,662.85,661.93,1.12090803]
[1748052737666,1.58691382,662.84,661.92,1.12090803]
[1748052737870,1.58691382,662.83,661.92,1.12090803]
[1748052738067,1.58691382,662.82,661.92,1.12090803]
[1748052738269,1.58715115,662.81,661.92,1.12090803]
[1748052738467,1.58715115,662.8,661.92,1.12090803]
[1748052738773,1.09582924,662.79,661.92,1.12090803]
[1748052738968,1.09582924,662.78,661.92,1.12090803]
[1748052739168,1.09582924,662.77,661.92,1.12090803]
[1748052739368,1.09582924,662.76,661.92,1.12090803]
[1748052739567,1.09582924,662.75,661.92,1.12090803]
[1748052739865,1.09582924,662.74,661.92,1.12090803]
[1748052740065,1.09582924,662.73,661.92,1.12090803]
[1748052740269,1.09582924,662.72,661.92,1.12090803]
[1748052740569,1.09582924,662.71,661.92,1.12090803]
[1748052740870,0.30169552,662.92,661.93,1.12090803]
[1748052741070,1.58870697,662.91,661.93,1.12090803]
[1748052741271,1.58870697,662.9,661.93,1.12090803]
[1748052741471,1.58870697,662.89,661.93,1.12090803]
[1748052741668,1.58870697,662.88,661.93,1.12090803]
[1748052741866,1.58870697,662.87,661.93,1.12090803]
[1748052742071,1.58928891,662.86,661.93,1.12090803]
[1748052742271,1.58928891,662.85,661.93,1.12090803]
[1748052742571,1.58928891,662.84,661.93,1.12090803]
[1748052742871,1.58928891,662.83,661.93,1.12090803]
[1748052743171,1.58928891,662.82,661.93,1.12090803]
[1748052743370,1.58928891,662.81,661.93,1.12090803]
[1748052743566,1.58928891,662.8,661.93,1.12090803]
[1748052743765,1.58969124,662.79,661.93,1.12090803]
[1748052743970,1.58969124,662.78,661.97,1.12090803]
[1748052744168,1.50379737,662.89,661.97,1.12090803]
[1748052744169,1.58969124,662.77,661.97,1.12090803]
[1748052744371,1.58969124,662.76,661.97,1.12090803]
[1748052744569,1.58969124,662.75,661.97,1.12090803]
[1748052744773,1.0974671,662.74,661.97,1.12090803]
[1748052744968,1.0974671,662.73,661.97,1.12090803]
[1748052745179,1.0974671,662.72,661.97,1.12090803]
[1748052745372,1.0974671,662.71,661.97,1.12090803]
[1748052745568,1.09952895,662.7,661.97,1.12090803]
[1748052745773,1.09952895,662.69,661.97,1.12090803]
[1748052745975,1.09952895,662.68,661.97,1.12090803]
[1748052746174,1.50379737,662.89,661.97,1.12090803]
[1748052746473,1.59238484,662.88,661.97,1.12090803]
[1748052746670,1.59238484,662.87,661.97,1.12090803]
[1748052746874,1.59238484,662.86,661.97,1.12090803]
[1748052747074,1.59238484,662.85,661.97,1.12090803]
[1748052747276,1.59238484,662.84,662.11,1.12090803]
[1748052747476,1.59241514,662.83,662.11,1.12090803]
[1748052747776,1.09960658,662.82,662.11,1.12090803]
[1748052747974,1.09960658,662.81,662.11,1.12090803]
[1748052748170,1.09960658,662.8,662.11,1.12090803]
[1748052748370,1.09960658,662.79,662.11,1.12090803]
[1748052748670,1.09960658,662.78,662.11,1.12090803]
[1748052748871,0.30169552,662.92,662.11,1.12090803]
[1748052749074,1.59268141,662.91,662.12,1.643]
[1748052749270,1.59268141,662.9,662.12,1.643]
[1748052749471,1.59268141,662.89,662.12,1.643]
[1748052749674,1.59268141,662.88,662.12,1.643]
[1748052749874,1.59268141,662.87,662.12,1.643]
[1748052750170,1.59268141,662.86,662.12,1.643]
[1748052750374,1.59268141,662.85,662.12,1.643]
[1748052750572,1.59268141,662.84,662.12,1.643]
[1748052750770,1.59268141,662.83,662.12,1.643]
[1748052750974,1.59268141,662.82,662.12,1.643]
[1748052751175,1.09977498,662.81,662.12,1.643]
[1748052751377,1.09977498,662.8,662.15,1.12090803]
[1748052751579,1.09977498,662.79,662.15,1.12090803]
[1748052751878,1.09977498,662.78,662.15,1.12090803]
[1748052752079,1.09977498,662.77,662.15,1.12090803]
[1748052752275,1.09977498,662.76,662.15,1.12090803]
[1748052752481,0.30169552,662.92,662.15,1.12090803]
[1748052752680,1.59192018,662.91,662.15,1.12090803]
[1748052752880,1.59192172,662.9,662.15,1.12090803]
[1748052753077,1.59192172,662.89,662.15,1.12090803]
[1748052753276,1.59192172,662.88,662.15,1.12090803]
[1748052753478,1.59192172,662.87,662.15,1.12090803]
[1748052753776,1.59192172,662.86,662.15,1.12090803]
[1748052753977,1.59192172,662.85,662.15,1.12090803]
[1748052754179,1.59192172,662.84,662.15,1.12090803]
[1748052754383,1.59192172,662.83,662.14,1.12090803]
[1748052754582,1.59190912,662.82,662.14,1.12090803]
[1748052754782,1.59190912,662.81,662.14,1.12090803]
[1748052755081,1.59190912,662.8,662.14,1.12090803]
[1748052755283,1.0987513,662.79,662.14,1.12090803]
[1748052755484,1.0987513,662.78,662.14,1.12090803]
[1748052755683,1.0987513,662.77,662.14,1.12090803]
[1748052755979,1.0987513,662.76,662.14,1.12090803]
[1748052756179,0.30169552,662.92,662.14,1.12090803]
[1748052756383,1.59197256,662.91,662.14,1.12090803]
[1748052756584,1.59197256,662.9,662.14,1.12090803]
[1748052756783,1.59197256,662.89,662.14,1.12090803]
[1748052756986,1.59197256,662.88,662.15,1.12090803]
[1748052757185,1.59197256,662.87,662.15,1.12090803]
[1748052757384,1.59197256,662.86,662.15,1.12090803]
[1748052757684,1.59197256,662.85,662.15,1.12090803]
[1748052757880,1.59197256,662.84,662.15,1.12090803]
[1748052758178,1.59197256,662.83,662.15,1.12090803]
[1748052758382,1.59197256,662.82,662.15,1.12090803]
[1748052758587,1.59197256,662.81,662.15,1.12090803]
[1748052758787,1.59197256,662.8,662.15,1.12090803]
[1748052759080,1.09876946,662.79,662.15,1.12090803]
[1748052759285,1.09876946,662.78,662.15,1.12090803]
[1748052759487,1.09876946,662.77,662.15,1.12090803]
[1748052759786,1.59192326,662.76,662.15,1.12090803]
[1748052759986,1.09876946,662.75,662.15,1.12090803]
[1748052760188,1.59197163,662.74,662.15,1.12090803]
[1748052760379,1.59197163,662.73,662.12,1.643]
[1748052760580,1.59197163,662.72,662.12,1.643]
[1748052760786,1.59197163,662.71,662.12,1.643]
[1748052760985,1.59197163,662.7,662.12,1.643]
[1748052761185,1.59197163,662.69,662.12,1.643]
[1748052761485,1.59197163,662.68,662.12,1.643]
[1748052761683,1.09876946,662.67,662.12,1.643]
[1748052761881,0.30169552,662.92,662.12,1.643]
[1748052761882,1.0987676,662.66,662.12,1.643]
[1748052762086,1.0987676,662.65,662.12,1.643]
[1748052762286,1.0987676,662.64,662.12,1.643]
[1748052762487,1.0987676,662.63,662.12,1.643]
[1748052762686,0.30169552,662.92,662.12,1.643]
[1748052762887,1.59194162,662.91,662.12,1.643]
[1748052763187,1.59194162,662.9,662.12,1.643]
[1748052763387,1.59194162,662.89,662.12,1.643]
[1748052763588,1.59194162,662.88,662.12,1.643]
[1748052763789,1.59194162,662.87,662.12,1.643]
[1748052763988,1.59194162,662.86,662.12,1.643]
[1748052764288,1.59194162,662.85,662.12,1.643]
[1748052764483,1.59194162,662.84,662.12,1.643]
[1748052764687,1.5919403,662.83,662.12,1.643]
[1748052764887,1.5919403,662.82,662.12,1.643]
[1748052765087,1.5919403,662.81,662.12,1.643]
[1748052765291,1.5919403,662.8,662.12,1.643]
[1748052765590,1.59192472,662.79,662.12,1.643]
[1748052765785,1.59192472,662.78,662.12,1.643]
[1748052765990,1.59192472,662.77,662.12,1.643]
[1748052766290,1.59192472,662.76,662.12,1.643]
[1748052766490,1.59192472,662.75,662.12,1.643]
[1748052766684,1.59192472,662.74,662.12,1.643]
[1748052766890,1.59192472,662.73,662.12,1.643]
[1748052767084,1.59192472,662.72,662.12,1.643]